fUSD/lending_fUSD_20260329
["ID","MTS","AMOUNT","RATE_DAILY","PERIOD"]
[419031382,1774788636543,-250.0,0.00014446,2]
[419031383,1774788636553,-250.0,0.00014446,2]
[419031384,1774788636562,-250.0,0.00014446,2]
[419031385,1774788636572,-743.50770149,0.00014446,2]
[419031386,1774788636582,-500.0,0.00014446,2]
[419031387,1774788636592,-500.0,0.00014446,2]
[419031388,1774788636602,-500.0,0.00014446,2]
[419031389,1774788636611,-500.0,0.00014446,2]
[419031390,1774788636622,-500.0,0.00014446,2]
[419031391,1774788636632,-262.90206542,0.00014446,2]
[419031392,1774788636641,-279.9045709,0.00014446,2]
[419031393,1774788636652,-198.86774533,0.00014447,2]
[419031394,1774788636662,-500.0,0.00014447,2]
[419031395,1774788636671,-500.0,0.00014447,2]
[419031396,1774788636681,-199.69025685,0.00014448,2]
[419031397,1774788636691,-8924.97,0.00014448,2]
[419031398,1774788636701,-151.0,0.00014455,2]
[419031399,1774788636711,-151.0,0.00014455,2]
[419031400,1774788636720,-151.0,0.00014455,2]
[419031401,1774788636730,-151.0,0.00014455,2]
[419031402,1774788636740,-151.0,0.00014455,2]
[419031403,1774788636749,-151.0,0.00014455,2]
[419031404,1774788636759,-151.0,0.00014455,2]
[419031405,1774788636770,-500.0,0.00014457,2]
[419031406,1774788636781,-500.0,0.00014457,2]
[419031407,1774788636792,-500.0,0.00014457,2]
[419031408,1774788636801,-500.0,0.00014457,2]
[419031409,1774788636811,-500.0,0.00014457,2]
[419031410,1774788636822,-3.23158847,0.00014457,2]
[419031411,1774788636838,-496.76841153,0.00014457,2]
[419031412,1774788636848,-500.0,0.00014457,2]
[419031413,1774788636858,-500.0,0.00014457,2]
[419031414,1774788636868,-500.0,0.00014457,2]
[419031415,1774788636878,-500.0,0.00014457,2]
[419031416,1774788636888,-500.0,0.00014457,2]
[419031417,1774788636898,-500.0,0.00014457,2]
[419031418,1774788636908,-500.0,0.00014457,2]
[419031419,1774788636917,-500.0,0.00014457,2]
[419031420,1774788636926,-500.0,0.00014457,2]
[419031421,1774788636936,-500.0,0.00014457,2]
[419031422,1774788636945,-65.61163814,0.00014457,2]
[419031435,1774788638879,-313.87485218,0.00013818,2]
[419031507,1774788639884,-186.12514782,0.00013818,2]
[419031508,1774788639894,-500.0,0.00013818,2]
[419031510,1774788639904,-22.18061278,0.00013818,2]
[419031511,1774788639916,-477.81938722,0.00013818,2]
[419031513,1774788639926,-500.0,0.00013818,2]
[419031515,1774788639936,-500.0,0.00013818,2]
[419031517,1774788639945,-250.49455744,0.00013818,2]
[419031519,1774788639957,-249.50544256,0.00013818,2]
[419031521,1774788639967,-250.49455744,0.00013818,2]
[419031656,1774788641301,-249.50544256,0.00013818,2]
[419031658,1774788641311,-500.0,0.00013818,2]
[419031660,1774788641321,-500.0,0.00013818,2]
[419031662,1774788641330,-500.0,0.00013818,2]
[419031664,1774788641340,-500.0,0.00013818,2]
[419031666,1774788641350,-500.0,0.00013818,2]
[419031668,1774788641361,-500.0,0.00013818,2]
[419031670,1774788641371,-500.0,0.00013818,2]
[419031672,1774788641380,-500.0,0.00013818,2]
[419031674,1774788641389,-323.69054862,0.00013818,2]
[419031675,1774788641398,-500.0,0.00013818,2]
[419031677,1774788641408,-150.0,0.00013818,2]
[419031679,1774788641417,-500.0,0.00013818,2]
[419031681,1774788641427,-500.0,0.00013818,2]
[419031683,1774788641437,-500.0,0.00013818,2]
[419031685,1774788641446,-500.0,0.00013818,2]
[419031687,1774788641456,-500.0,0.00013818,2]
[419031689,1774788641465,-500.47744507,0.00013818,2]
[419031691,1774788641475,-417.0,0.00013818,2]
[419031693,1774788641484,-417.0,0.00013818,2]
[419031695,1774788641493,-417.0,0.00013818,2]
[419031697,1774788641502,-417.0,0.00013818,2]
[419031699,1774788641512,-417.0,0.00013818,2]
[419031701,1774788641521,-417.0,0.00013818,2]
[419031703,1774788641531,-417.0,0.00013818,2]
[419031705,1774788641541,-417.0,0.00013818,2]
[419031707,1774788641550,-417.0,0.00013818,2]
[419031709,1774788641560,-417.0,0.00013818,2]
[419031711,1774788641569,-417.0,0.00013818,2]
[419031713,1774788641580,-417.0,0.00013818,2]
[419031715,1774788641590,-417.0,0.00013818,2]
[419031717,1774788641599,-363.3563209,0.00013818,2]
[419031719,1774788641612,-53.6436791,0.00013818,2]
[419031721,1774788641621,-417.0,0.00013818,2]
[419031723,1774788641631,-417.0,0.00013818,2]
[419031725,1774788641640,-417.0,0.00013818,2]
[419031727,1774788641650,-417.0,0.00013818,2]
[419031729,1774788641660,-674.0629337,0.00014372,2]
[419031731,1774788641669,-256.36,0.00014455,14]
[419031733,1774788641678,-434.38836186,0.00014457,2]
[419031735,1774788641688,-500.0,0.00014457,2]
[419031737,1774788641699,-1041.24726387,0.00014457,5]
[419031739,1774788641708,-1864.26800432,0.00014458,2]
[419031941,1774788643676,-500.0,0.00013818,2]
[419031943,1774788643686,-500.0,0.00013818,2]
[419031945,1774788643695,-500.0,0.00013818,2]
[419031947,1774788643705,-417.0,0.00013818,2]
[419031949,1774788643715,-184.02985109,0.00013818,2]
[419031951,1774788643725,-9172.73551704,0.00014458,2]
[419031953,1774788643736,-32366.97540744,0.00014458,2]
[419032215,1774788646507,-417.0,0.00013818,2]
[419032217,1774788646518,-417.0,0.00013818,2]
[419032219,1774788646527,-172.2589854,0.00014458,2]
[419032233,1774788646658,-410.4306605,0.00014458,2]
[419032384,1774788665125,2057.14188531,0.0002555,120]
[419032385,1774788666446,613.26700416,0.0002555,120]
[419032386,1774788668115,415.0,0.000255,120]
[419032387,1774788669462,1969.517,0.0002555,120]
[419032388,1774788707315,200.0,0.0001049,2]
[419032389,1774788772179,441.6,0.00017,60]
[419032390,1774788905367,1699.74355515,0.0002555,120]
[419032391,1774789003273,433.0,0.000254,120]
[419032392,1774789049541,150.0,0.00020292,120]
[419032393,1774789144865,150.0,0.00020405,120]
[419032394,1774789170588,167.61,6.409e-05,2]
[419033181,1774789630568,281.02007496,0.0002,120]
[419033182,1774789658491,605.22327867,8e-05,2]
[419033183,1774789725601,205.0,9.8e-05,2]
[419033184,1774789729631,261.48805615,0.000101,2]
[419033185,1774789788023,237.01,9.712e-05,2]
[419033186,1774789802878,866.22168395,0.0001,2]
[419033187,1774789812754,7457.45698123,9.5e-05,3]
[419033188,1774789812777,10000.01,9.5e-05,3]
[419033189,1774789812799,10000.01,9.5e-05,3]
[419033190,1774789812823,10000.01,9.5e-05,3]
[419033191,1774789812846,10000.01,9.5e-05,3]
[419033192,1774789812868,10000.01,9.5e-05,3]
[419033193,1774789812890,10000.01,9.5e-05,3]
[419033194,1774789812912,10000.01,9.5e-05,3]
[419033195,1774789812937,10000.01,9.5e-05,3]
[419033196,1774789812959,10000.01,9.5e-05,3]
[419033197,1774789812987,5000.0,9.5e-05,3]
[419033198,1774789813017,70458.04388729,9.5e-05,3]
[419033199,1774789821959,1003.1056054,4.58e-05,120]
[419033205,1774789831812,-238.59,0.00010804,2]
[419033206,1774789831822,-581.7,0.00011133,2]
[419033207,1774789831831,-975.0433,0.0001132,2]
[419033209,1774789831842,-265.84703492,0.0001132,2]
[419033211,1774789831854,-1259.10966508,0.0001132,2]
[419033213,1774789831863,-1684.73,0.00011507,2]
[419033214,1774789831873,-646.56,0.00011616,2]
[419033215,1774789831883,-182.0,0.00011825,2]
[419033216,1774789831892,-300.0,0.00011825,2]
[419033217,1774789831902,-1200.0,0.00011825,2]
[419033218,1774789832222,-2500.0,0.00011826,2]
[419033219,1774789832232,-2500.0,0.00011826,2]
[419033220,1774789832242,-2500.0,0.00011826,2]
[419033221,1774789832253,-1000.0,0.00012119,2]
[419033222,1774789832262,-166.66,0.00012122,2]
[419033223,1774789832271,-2500.0,0.00012246,2]
[419033224,1774789832280,-449.3239083,0.00012277,2]
[419033225,1774789832290,-166.66,0.00012377,2]
[419033226,1774789832299,-4835.48,0.00012569,2]
[419033227,1774789832309,-166.66,0.00012633,2]
[419033228,1774789832318,-166.66,0.00012888,2]
[419033229,1774789832328,-420.0,0.00012984,2]
[419033230,1774789832338,-250.0,0.00013,2]
[419033231,1774789832348,-500.0,0.00013,2]
[419033232,1774789832358,-500.0,0.00013,2]
[419033233,1774789832368,-477.53348132,0.00013,2]
[419033234,1774789832378,-150.0,0.00013,2]
[419033235,1774789832388,-1680.0,0.00013008,2]
[419033236,1774789832398,-2000.0,0.00013026,2]
[419033237,1774789832408,-150.0,0.00013026,7]
[419033238,1774789832417,-166.66,0.00013143,2]
[419033239,1774789832427,-533.69,0.00013182,2]
[419033240,1774789832437,-907.20644085,0.00013364,2]
[419033241,1774789832447,-10881.17015895,0.00013364,2]
[419033242,1774789832456,-907.20644085,0.00013364,2]
[419033243,1774789832466,-166.66,0.00013398,2]
[419033244,1774789832477,-150.0,0.00013424,2]
[419033245,1774789832486,-3240.0,0.00013425,2]
[419033246,1774789832496,-112182.48409072,0.00013434,2]
[419033247,1774789832509,-11603.95740424,0.00013434,2]
[419033248,1774789832536,-1697.37309032,0.00013434,2]
[419033249,1774789832547,-436.87010393,0.00013434,2]
[419033250,1774789832560,-474.202935,0.00013434,2]
[419033251,1774789832571,-2171.7498082,0.00013434,2]
[419033252,1774789832600,-331.47987401,0.00013434,2]
[419033265,1774789838127,-363.98041957,0.00013434,2]
[419033268,1774789838139,-317.00172,0.00013434,2]
[419033270,1774789838151,-252.9257169,0.00013434,2]
[419033273,1774789838176,-1356.7636959,0.00013434,2]
[419033276,1774789838188,-5242.24619084,0.00013434,2]
[419033278,1774789838200,-3932.72434963,0.00013434,2]
[419033280,1774789838211,-1258.96805331,0.00013434,2]
[419033282,1774789838224,-3326.51196535,0.00013434,2]
[419033284,1774789838236,-8052.99277437,0.00013434,2]
[419033295,1774789838337,-348.01441186,0.00013434,2]
[419033298,1774789838349,-563.94852852,0.00013434,2]
[419033422,1774789839917,-500.0,0.00013433,2]
[419033423,1774789839927,-240.45553934,0.00013433,2]
[419033424,1774789839944,-165.00394691,0.00013433,2]
[419033425,1774789839955,-286.52365484,0.00013433,2]
[419033426,1774789839966,-500.0,0.00013433,2]
[419033427,1774789839976,-500.0,0.00013433,2]
[419033428,1774789839986,-263.59011306,0.00013433,2]
[419033429,1774789839997,-500.0,0.00013433,2]
[419033430,1774789840007,-603.14941366,0.00013433,2]
[419033431,1774789840017,-500.0,0.00013433,2]
[419033432,1774789840027,-500.0,0.00013433,2]
[419033433,1774789840037,-264.25775761,0.00013433,2]
[419033434,1774789840048,-500.0,0.00013433,2]
[419033435,1774789840059,-500.0,0.00013433,2]
[419033436,1774789840068,-250.15887497,0.00013433,2]
[419033437,1774789840544,-249.84112503,0.00013433,2]
[419033438,1774789840554,-500.0,0.00013433,2]
[419033439,1774789840564,-500.0,0.00013433,2]
[419033440,1774789840574,-580.01088042,0.00013433,2]
[419033441,1774789840584,-1712.16312892,0.00013434,2]
[419033442,1774789840596,-374.99823541,0.00013434,2]
[419033447,1774789843167,-3723.89618826,0.00013434,2]
[419033455,1774789845815,-1332.28436522,0.00013434,2]
[419033456,1774789846021,-2225.34200765,0.00013434,2]
[419033458,1774789849750,1840.0,5e-05,2]
[419033459,1774789850333,860.66,5e-05,2]
[419033460,1774789850865,1848.88,5.289e-05,2]
[419033461,1774789861047,150.0,0.00019848,120]
[419033462,1774789867241,158.0,0.0002555,120]
[419033463,1774789868306,160.0,0.0002555,120]
[419033465,1774790024958,338.0,0.00010433,2]
[419033469,1774790206040,225.0,0.00010433,2]
[419033470,1774790349111,150.0,0.000198,120]
[419033471,1774790349958,150.0,0.00021008,120]
[419033472,1774790373533,150.0,0.00019802,120]
[419033473,1774790386207,150.0,0.00010433,2]
[419033474,1774790405712,158.0,0.00024576,120]
[419033475,1774790536805,150.0,0.00019775,120]
[419033476,1774790655058,150.0,0.00019889,120]
[419033477,1774790655154,150.0,0.00021103,120]
[419033479,1774790680913,150.0,0.00019892,120]
[419033480,1774790706203,729.0,0.00024086,120]
[419033481,1774790707502,729.0,0.00025291,120]
[419033482,1774790738160,150.0,0.00019891,120]
[419033483,1774790783533,213.59,0.00016,120]
[419033485,1774790939913,150.0,0.00019931,120]
[419033486,1774790944829,150.0,0.00021147,120]
[419033487,1774790945563,150.0,0.00022363,120]
[419033488,1774790980363,317.34,0.00016,120]
[419033489,1774790986767,150.0,0.00019929,120]
[419033490,1774790987370,150.0,0.00021146,120]
[419033491,1774791002661,150.0,0.00017795,120]
[419033492,1774791003870,255.56258686,0.00017795,120]
[419033493,1774791008042,255.0,0.00025549,120]
[419033494,1774791012583,1055.0,0.00023113,120]
[419033495,1774791013918,1055.0,0.00024268,120]
[419033496,1774791015223,1055.0,0.00025482,120]
[419033497,1774791029687,155.0,0.00025549,120]
[419033554,1774791033799,-819.51,0.00010767,2]
[419033555,1774791033809,-250.0,0.00010767,2]
[419033556,1774791033818,-272.0,0.00010767,2]
[419033557,1774791033828,-2053.9655915,0.00010909,2]
[419033558,1774791033837,-2500.0,0.0001105,2]
[419033559,1774791033847,-300.0,0.00011394,2]
[419033560,1774791033857,-1200.0,0.00011394,2]
[419033561,1774791033866,-2500.0,0.00011395,2]
[419033562,1774791033876,-2500.0,0.00011395,2]
[419033563,1774791033886,-2500.0,0.00011395,2]
[419033564,1774791033896,-213.43446758,0.00011656,2]
[419033565,1774791033906,-214.4297737,0.00011726,2]
[419033566,1774791033916,-222.0,0.00011843,2]
[419033567,1774791033926,-2500.0,0.00011844,2]
[419033568,1774791033936,-5000.0,0.00011844,2]
[419033569,1774791033946,-250.0,0.00011844,2]
[419033570,1774791033957,-7093.2976499,0.00012,7]
[419033571,1774791033967,-150.0,0.00012,2]
[419033572,1774791033977,-1600.0,0.00012033,2]
[419033573,1774791033987,-1500.0,0.00012067,2]
[419033574,1774791033997,-3659.16,0.00012163,2]
[419033575,1774791034006,-200.0,0.0001227,2]
[419033576,1774791034016,-164.87,0.00012346,2]
[419033577,1774791034026,-150.0,0.00012346,2]
[419033578,1774791034037,-1202.47,0.00012347,2]
[419033579,1774791034048,-20710.18,0.00012347,2]
[419033580,1774791034058,-154.55748469,0.00012467,2]
[419033581,1774791034067,-843.69,0.00012469,2]
[419033582,1774791034077,-1680.0,0.00012534,2]
[419033583,1774791034086,-1700.0,0.000127,4]
[419033584,1774791034096,-3400.0,0.000128,4]
[419033585,1774791034106,-5100.0,0.000129,4]
[419033586,1774791034116,-500.0,0.00012959,2]
[419033587,1774791034126,-250.0,0.00013,2]
[419033588,1774791034136,-178.0710945,0.000131,2]
[419033589,1774791034146,-317.14193044,0.000131,2]
[419033590,1774791034157,-320.34669328,0.00013192,2]
[419033591,1774791034166,-1068.08810011,0.00013192,2]
[419033592,1774791034176,-1068.08810011,0.00013192,2]
[419033593,1774791034186,-199.47320477,0.00013192,2]
[419033594,1774791034196,-9813.843143,0.00013192,2]
[419033595,1774791034205,-184.51307914,0.00013199,2]
[419033596,1774791034215,-500.0,0.00013199,2]
[419033597,1774791034224,-500.0,0.00013199,2]
[419033598,1774791034234,-263.88109046,0.00013199,2]
[419033599,1774791034244,-168.31887754,0.00013199,2]
[419033600,1774791034253,-208.14047551,0.00013199,2]
[419033601,1774791034263,-500.0,0.00013199,2]
[419033602,1774791034272,-500.0,0.00013199,2]
[419033603,1774791034281,-394.61207279,0.00013199,2]
[419033604,1774791034290,-500.0,0.00013199,2]
[419033605,1774791034299,-500.0,0.00013199,2]
[419033606,1774791034309,-286.6678756,0.00013199,2]
[419033607,1774791034319,-240.38891848,0.00013199,2]
[419033608,1774791034329,-1985.88421714,0.000132,2]
[419033609,1774791034342,-65428.14426846,0.000132,2]
[419033610,1774791034354,-21505.94755191,0.000132,2]
[419033611,1774791036734,222.0,0.00025549,120]
[419033615,1774791037757,-150.0,0.00011543,2]
[419033616,1774791037767,-142.66173134,0.000132,2]
[419033617,1774791037778,-719055.27847095,0.000132,2]
[419033618,1774791037789,-340863.48922803,0.000132,2]
[419033619,1774791037878,-621.65486227,0.000132,2]
[419033623,1774791039930,-400.42255058,0.000132,2]
[419033624,1774791039997,-3451.94947151,0.000132,2]
[419033643,1774791042933,-610.77887769,0.000132,2]
[419033644,1774791042945,-40095.02995952,0.000132,2]
[419033648,1774791045970,-222.02721714,0.0001319,2]
[419033649,1774791045981,-2162.04273891,0.000132,2]
[419033650,1774791046630,-397.27999999,0.000132,2]
[419033651,1774791046643,-351.639954,0.000132,2]
[419033652,1774791046764,-1136.82271602,0.000132,2]
[419033653,1774791046775,-1474.12961339,0.000132,2]
[419033663,1774791051942,150.0,0.0001992,120]
[419033664,1774791090698,150.0,0.00019992,120]
[419033665,1774791173381,285.6,0.00016,120]
[419033666,1774791185208,150.0,0.00019992,120]
[419033667,1774791203868,500.0,0.00025356,120]
[419033668,1774791306550,686.0,0.00023572,120]
[419033669,1774791307828,686.0,0.00024751,120]
[419033670,1774791369842,257.04,0.00016,120]
[419033671,1774791373136,3269.0,0.0002555,120]
[419033672,1774791403800,459.0,0.00022,120]
[419033673,1774791404801,854.14318399,0.00025,120]
[419033674,1774791455718,150.0,0.00020124,120]
[419033675,1774791562739,231.34,0.00016,120]
[419033676,1774791604088,518.34898184,0.00017214,120]
[419033677,1774791606404,1268.0,0.0002555,120]
[419033678,1774791607303,1687.0,0.00023802,120]
[419033679,1774791608601,1687.0,0.00024992,120]
[419033680,1774791635983,1002.91110319,0.0002555,120]
[419033681,1774791758665,208.2,0.00016,120]
[419033682,1774791792907,464.0306,0.0002555,120]
[419033683,1774791800632,500.0,0.00025161,120]
[419033684,1774791907106,1012.0,0.00024018,120]
[419033685,1774791908127,768.47,5.985e-05,2]
[419033686,1774791908319,768.47,6.3e-05,2]
[419033687,1774791908361,1012.0,0.00025219,120]
[419033688,1774791908521,768.47,6.615e-05,2]
[419033689,1774791908724,768.47,6.93e-05,2]
[419033690,1774791908931,768.47,7.245e-05,2]
[419033691,1774791909128,768.47,7.56e-05,2]
[419033692,1774791909331,768.47,7.875e-05,2]
[419033693,1774791909535,768.47,8.19e-05,2]
[419033694,1774791909748,768.47,8.505e-05,2]
[419033695,1774791909932,768.47,8.82e-05,2]
[419033696,1774791910128,768.47,9.135e-05,2]
[419033697,1774791910324,768.47,9.45e-05,2]
[419033698,1774791910514,628.37,9.765e-05,2]
[419033699,1774791910538,140.1,9.765e-05,2]
[419033700,1774791910713,768.47,0.0001008,2]
[419033701,1774791910894,768.47,0.00010395,2]
[419033702,1774791954957,187.38,0.00016,120]
[419033706,1774792127820,-768.47,0.0001071,2]
[419033707,1774792127843,-768.47,0.00011025,2]
[419033708,1774792127865,-300.0,0.00011313,2]
[419033709,1774792127887,-163.06,0.00011314,2]
[419033710,1774792129034,-2000.0,0.00011314,2]
[419033711,1774792129415,-336.94,0.00011314,2]
[419033712,1774792129440,-1663.06,0.00011314,2]
[419033713,1774792130563,-836.94,0.00011314,2]
[419033714,1774792130584,-1163.06,0.00011314,2]
[419033715,1774792131153,-1336.94,0.00011314,2]
[419033716,1774792131174,-663.06,0.00011314,2]
[419033717,1774792131207,-1836.94,0.00011314,2]
[419033718,1774792131230,-163.06,0.0001134,2]
[419033719,1774792131978,-605.41,0.0001134,2]
[419033720,1774792132001,-1394.59,0.00011652,2]
[419033721,1774792132040,-605.41,0.00011652,2]
[419033722,1774792132063,-768.47,0.00011655,2]
[419033723,1774792132084,-626.12,0.00011781,2]
[419033724,1774792135950,-1873.88,0.00011781,2]
[419033725,1774792135972,-126.12,0.00011844,2]
[419033726,1774792136810,-23.88,0.00011844,2]
[419033727,1774792136834,-250.0,0.00011897,2]
[419033728,1774792136858,-768.47,0.0001197,2]
[419033729,1774792136879,-957.65,0.00012076,2]
[419033730,1774792149553,168.65,0.00016,120]
[419033731,1774792200679,150.0,0.00017795,120]
[419033732,1774792201499,161.00938911,0.00017795,120]
[419033759,1774792212453,607.0,0.00024076,120]
[419033760,1774792213967,607.0,0.00025279,120]
[419033766,1774792232950,-1433.78,0.00011507,2]
[419033767,1774792232960,-1671.71,0.00012076,2]
[419033768,1774792232969,-1037.17247,0.00012183,2]
[419033774,1774792238140,-902.27167833,0.00012183,2]
[419033847,1774792240245,-560.55585167,0.00012183,2]
[419033848,1774792240255,-157.51,0.00012289,2]
[419033849,1774792240265,-300.0,0.00012301,2]
[419033850,1774792240275,-1200.0,0.00012301,2]
[419033851,1774792240284,-2500.0,0.00012302,2]
[419033852,1774792240294,-2500.0,0.00012302,2]
[419033853,1774792240303,-2500.0,0.00012302,2]
[419033854,1774792240313,-321.00491476,0.00012356,2]
[419033855,1774792240322,-1700.0,0.000125,4]
[419033856,1774792240332,-150.0,0.00012596,2]
[419033857,1774792240342,-405.73,0.00012597,2]
[419033858,1774792240351,-3500.0,0.000126,4]
[419033859,1774792240361,-166.67,0.00012624,2]
[419033860,1774792240371,-5300.0,0.000127,4]
[419033861,1774792240381,-405.78,0.00012718,2]
[419033862,1774792240391,-8572.36879391,0.0001277,2]
[419033863,1774792240400,-213.56446218,0.0001277,2]
[419033864,1774792240410,-8894.82882877,0.0001277,2]
[419033865,1774792240420,-1163.0124635,0.0001277,2]
[419033866,1774792240430,-153.85477035,0.000128,2]
[419033867,1774792240440,-7100.0,0.000128,4]
[419033868,1774792240450,-405.74,0.00012838,2]
[419033869,1774792240460,-405.78,0.00012838,2]
[419033870,1774792240469,-8894.82882868,0.00012845,2]
[419033871,1774792240478,-8572.36879386,0.00012862,2]
[419033872,1774792240487,-500.0,0.00012869,2]
[419033873,1774792240497,-500.0,0.00012869,2]
[419033874,1774792240506,-545.69833285,0.00012869,2]
[419033875,1774792240515,-500.0,0.00012869,2]
[419033876,1774792240525,-386.31161957,0.00012869,2]
[419033877,1774792240534,-184.71676333,0.00012869,2]
[419033878,1774792240543,-500.0,0.00012869,2]
[419033879,1774792240553,-476.22845095,0.00012869,2]
[419033880,1774792240563,-500.0,0.00012869,2]
[419033881,1774792240572,-500.0,0.00012869,2]
[419033882,1774792240582,-500.0,0.00012869,2]
[419033883,1774792240593,-500.0,0.00012869,2]
[419033884,1774792240604,-500.0,0.00012869,2]
[419033885,1774792240613,-500.0,0.00012869,2]
[419033886,1774792240622,-500.0,0.00012869,2]
[419033887,1774792240632,-500.0,0.00012869,2]
[419033888,1774792240641,-500.0,0.00012869,2]
[419033889,1774792240651,-500.0,0.00012869,2]
[419033890,1774792240660,-500.0,0.00012869,2]
[419033891,1774792240669,-500.0,0.00012869,2]
[419033892,1774792240680,-500.0,0.00012869,2]
[419033893,1774792240690,-500.0,0.00012869,2]
[419033894,1774792240699,-500.0,0.00012869,2]
[419033895,1774792240708,-500.0,0.00012869,2]
[419033896,1774792240718,-500.0,0.00012869,2]
[419033897,1774792240727,-500.0,0.00012869,2]
[419033898,1774792240738,-500.0,0.00012869,2]
[419033899,1774792240748,-500.0,0.00012869,2]
[419033900,1774792240758,-500.0,0.00012869,2]
[419033901,1774792240767,-500.0,0.00012869,2]
[419033902,1774792240777,-240198.08645786,0.0001287,2]
[419033903,1774792240790,-1358.16161724,0.0001287,2]
[419033904,1774792240809,-666.72522267,0.0001287,2]
[419033905,1774792240820,-850.54600693,0.0001287,2]
[419033906,1774792240891,-300.0,0.0001287,2]
[419033907,1774792240928,-678.69275224,0.0001287,2]
[419033908,1774792240939,-1820.89468532,0.0001287,2]
[419033909,1774792240991,-26313.64178273,0.0001287,2]
[419033922,1774792248894,-2885.87190903,0.0001287,2]
[419033925,1774792249127,-607.0,0.0001287,2]
[419033927,1774792249311,-2034.409023,0.0001287,2]
[419033932,1774792347740,223.73,0.00016,120]
[419033935,1774792402074,500.0,0.00025228,120]
[419033936,1774792508491,364.0,0.00024068,120]
[419033937,1774792510226,364.0,0.00025272,120]
[419033938,1774792539669,201.35,0.00016,120]
[419033939,1774792731718,181.22,0.00016,120]
[419033940,1774792788765,167.4,9.366e-05,2]
[419033941,1774792800647,186.60563346,0.00017795,120]
[419033942,1774792807628,219.0,0.0002402,120]
[419033943,1774792809201,219.0,0.00025221,120]
[419033945,1774792921836,163.1,0.00016,120]
[419033964,1774793004303,500.0,0.00025368,120]
[419033965,1774793107561,164.0,0.00024082,120]
[419033966,1774793108802,164.0,0.00025286,120]
[419033967,1774793113014,150.0,0.00016,120]
[419033968,1774793230260,199.26875795,0.0002,120]
[419033969,1774793242603,150.0,0.0002555,120]
[419033970,1774793258658,7967.705089,8e-05,2]
[419033972,1774793310880,150.0,0.00016,120]
[419033973,1774793400716,279.9084502,0.00017795,120]
[419033974,1774793409628,1864.904911,9.5e-05,3]
[419033975,1774793409653,10000.01,9.5e-05,3]
[419033976,1774793409678,10000.01,9.5e-05,3]
[419033977,1774793409715,10000.01,9.5e-05,3]
[419033978,1774793409741,10000.01,9.5e-05,3]
[419033979,1774793409766,10000.01,9.5e-05,3]
[419033980,1774793409792,10000.01,9.5e-05,3]
[419033981,1774793409817,10000.01,9.5e-05,3]
[419033982,1774793409842,10000.01,9.5e-05,3]
[419033983,1774793409867,10000.01,9.5e-05,3]
[419033984,1774793409901,250.0,9.5e-05,3]
[419033985,1774793409932,9800.41628056,9.5e-05,3]
[419033986,1774793409961,560709.65172716,9.5e-05,3]
[419033987,1774793410050,164.0,0.00023863,120]
[419033988,1774793410112,318.88738766,0.0002465,120]
[419033989,1774793411330,222.14124884,0.00025,120]
[419033990,1774793411437,164.0,0.00025056,120]
[419033991,1774793418869,301.10759853,0.00022,120]
[419033996,1774793432253,-630.0,0.000107,2]